fUST/lending_fUST_20240705
["ID","MTS","AMOUNT","RATE_DAILY","PERIOD"]
[331164055,1720113046623,-500.0,0.00013972,2]
[331164057,1720113046632,-551.12,0.00013972,2]
[331164060,1720113046642,-1715.3,0.00013972,2]
[331164062,1720113046651,-500.0,0.00013972,2]
[331164064,1720113046661,-500.0,0.00013972,2]
[331164066,1720113046671,-500.0,0.00013972,2]
[331164067,1720113046680,-1067.6,0.00013972,2]
[331164070,1720113046690,-500.0,0.00013972,2]
[331164071,1720113046700,-500.0,0.00013972,2]
[331164074,1720113046709,-500.0,0.00013972,2]
[331164076,1720113046719,-500.0,0.00013972,2]
[331164078,1720113046729,-500.0,0.00013972,2]
[331164080,1720113046738,-500.0,0.00013972,2]
[331164082,1720113046750,-500.0,0.00013972,2]
[331164084,1720113046760,-500.0,0.00013972,2]
[331164086,1720113046769,-4997.35,0.00013972,2]
[331164088,1720113046780,-500.03890643,0.00014,2]
[331164090,1720113046790,-877.0,0.00014071,2]
[331164092,1720113046799,-894.828,0.00014071,2]
[331164094,1720113046809,-500.03890643,0.000141,2]
[331164096,1720113046818,-8912.55985836,0.0001419,2]
[331164098,1720113046830,-12056.39586094,0.0001419,2]
[331164100,1720113046840,-1747.81,0.00014199,2]
[331164103,1720113046849,-133.86992057,0.000142,2]
[331164106,1720113046860,-5943.03131173,0.000142,2]
[331164109,1720113046870,-499.99444194,0.000142,2]
[331164111,1720113046879,-1747.81,0.00014235,2]
[331164114,1720113046888,-6084.38222516,0.00014236,2]
[331164557,1720113114355,490.92637027,9.999e-05,2]
[331164558,1720113179606,415.88353345,9.999e-05,2]
[331164559,1720113252587,282.93616103,9.999e-05,2]
[331164560,1720113253650,299.47574748,9.999e-05,2]
[331164561,1720113255810,318.0694556,9.999e-05,2]
[331164562,1720113263747,164.81209326,9.999e-05,2]
[331164563,1720113269394,207.66347557,9.999e-05,2]
[331164564,1720113271098,159.75544924,9.999e-05,2]
[331164565,1720113276661,241.01748097,9.999e-05,2]
[331164566,1720113279143,550.22191672,9.999e-05,2]
[331164567,1720113280722,524.53687803,9.999e-05,2]
[331164568,1720113281491,155.06206771,9.999e-05,2]
[331164569,1720113281747,155.00852547,9.999e-05,2]
[331164570,1720113283953,208.3392434,9.999e-05,2]
[331164571,1720113284921,723.78639686,9.999e-05,2]
[331164572,1720113285618,154.97675349,9.999e-05,2]
[331164573,1720113286311,567.15112247,9.999e-05,2]
[331164574,1720113303798,661.12832609,9.999e-05,2]
[331164575,1720113314494,195.52436264,9.999e-05,2]
[331164576,1720113326613,517.68163433,9.999e-05,2]
[331164577,1720113329639,457.57827588,9.999e-05,2]
[331164578,1720113329929,933.08575257,9.999e-05,2]
[331164579,1720113338381,401.7459215,9.999e-05,2]
[331164580,1720113340998,293.07017019,9.999e-05,2]
[331164581,1720113348518,179.583121,9.999e-05,2]
[331164582,1720113352359,165.50358213,9.999e-05,2]
[331164583,1720113359735,208.7303948,9.999e-05,2]
[331164584,1720113360676,157.57380656,9.999e-05,2]
[331164585,1720113364996,268.71695967,0.0001,2]
[331164586,1720113368153,163.50021957,9.999e-05,2]
[331164587,1720113415093,159.35965211,9.999e-05,2]
[331164588,1720113432623,516.21162963,9.999e-05,2]
[331164589,1720113434424,523.5184986,9.999e-05,2]
[331164590,1720113458272,286.45866748,9.999e-05,2]
[331164591,1720113511109,208.3392434,9.999e-05,2]
[331164593,1720113542429,537.10832929,9.999e-05,2]
[331164595,1720113603828,908.33583081,9.999e-05,2]
[331164600,1720113709834,404.67602219,9.999e-05,2]
[331164603,1720113874177,259.39180364,9.999e-05,2]
[331164611,1720113998888,284.48652942,9.999e-05,2]
[331164706,1720114239975,-1721.91394633,0.00012445,2]
[331164716,1720114240212,-23178.08605367,0.00012445,2]
[331164718,1720114240223,-670.8724394,0.00012749,2]
[331164719,1720114240234,-2189.37382173,0.00013598,2]
[331164720,1720114240244,-1133.56313975,0.00013598,2]
[331164721,1720114240256,-2189.37382172,0.00013667,2]
[331164722,1720114240266,-18215.849457,0.00013686,2]
[331164723,1720114240276,-118419.007903,0.00013688,2]
[331164724,1720114240287,-19736.5013172,0.00013689,2]
[331164725,1720114240297,-507.02019711,0.00013698,2]
[331164726,1720114240307,-508.7000445,0.00013698,2]
[331164727,1720114240317,-6835.1,0.00013698,2]
[331164728,1720114240326,-500.0,0.00013698,2]
[331164729,1720114240336,-500.0,0.00013698,2]
[331164730,1720114240346,-500.0,0.00013698,2]
[331164731,1720114240356,-500.0,0.00013698,2]
[331164732,1720114240366,-500.0,0.00013698,2]
[331164733,1720114240376,-500.0,0.00013698,2]
[331164734,1720114240386,-500.9383879,0.00013698,2]
[331164735,1720114240396,-500.0,0.00013698,2]
[331164736,1720114240406,-1082.88,0.00013698,2]
[331164737,1720114240417,-500.0,0.00013698,2]
[331164738,1720114240428,-500.0,0.00013698,2]
[331164739,1720114240437,-500.0,0.00013698,2]
[331164741,1720114240447,-500.0,0.00013698,2]
[331164743,1720114240458,-500.0,0.00013698,2]
[331164745,1720114240468,-501.08921587,0.00013698,2]
[331164747,1720114240478,-500.53920741,0.00013698,2]
[331164748,1720114240488,-500.0,0.00013698,2]
[331164750,1720114240498,-526.89884444,0.00013698,2]
[331164752,1720114240513,-500.0,0.00013698,2]
[331164754,1720114240522,-500.0,0.00013698,2]
[331164756,1720114240532,-563.20368314,0.00013698,2]
[331164758,1720114240541,-504.69,0.00013698,2]
[331164760,1720114240553,-500.0,0.00013698,2]
[331164762,1720114240562,-500.0,0.00013698,2]
[331164763,1720114240573,-191.49592881,0.00013698,2]
[331164764,1720114240585,-500.0,0.00013698,2]
[331164765,1720114240595,-500.0,0.00013698,2]
[331164766,1720114240606,-500.0,0.00013698,2]
[331164767,1720114240616,-978.64,0.00013698,2]
[331164768,1720114240626,-500.0,0.00013698,2]
[331164769,1720114240636,-502.12413421,0.00013698,2]
[331164770,1720114240647,-500.0,0.00013698,2]
[331164771,1720114240657,-500.0,0.00013698,2]
[331164772,1720114240667,-506.03210743,0.00013698,2]
[331164773,1720114240678,-500.0,0.00013698,2]
[331164774,1720114240689,-501.30596621,0.00013698,2]
[331164776,1720114240699,-500.0,0.00013698,2]
[331164778,1720114240709,-500.0,0.00013698,2]
[331164780,1720114240720,-500.0,0.00013698,2]
[331164781,1720114240730,-500.0,0.00013698,2]
[331164783,1720114240741,-310.69723758,0.00013698,2]
[331164785,1720114240752,-500.0,0.00013698,2]
[331164787,1720114240765,-500.0,0.00013698,2]
[331164789,1720114240777,-500.0,0.00013698,2]
[331164791,1720114240787,-509.69719731,0.00013698,2]
[331164792,1720114240797,-572.477477,0.00013698,2]
[331164794,1720114240807,-273.82684238,0.00013698,2]
[331164796,1720114240817,-500.0,0.00013698,2]
[331164798,1720114240827,-835.5,0.00013698,2]
[331164800,1720114240837,-452.43417451,0.00013698,2]
[331164801,1720114240847,-500.0,0.00013698,2]
[331164803,1720114240857,-500.0,0.00013698,2]
[331164805,1720114240867,-500.0,0.00013698,2]
[331164807,1720114240877,-500.0,0.00013698,2]
[331164808,1720114240888,-500.0,0.00013698,2]
[331164810,1720114240898,-504.51842998,0.00013698,2]
[331164811,1720114240908,-500.0,0.00013698,2]
[331164812,1720114240919,-500.80688013,0.00013698,2]
[331164813,1720114240928,-500.0,0.00013698,2]
[331164814,1720114240939,-500.0,0.00013698,2]
[331164816,1720114240949,-500.0,0.00013698,2]
[331164818,1720114240959,-503.71636335,0.00013698,2]
[331164820,1720114240969,-500.0,0.00013698,2]
[331164822,1720114240978,-503.19231615,0.00013698,2]
[331164824,1720114240988,-649.59,0.00013698,2]
[331164825,1720114240998,-503.4547727,0.00013698,2]
[331164827,1720114241008,-500.0,0.00013698,2]
[331164829,1720114241019,-500.0,0.00013698,2]
[331164831,1720114241030,-667.07,0.00013698,2]
[331164833,1720114241039,-500.0,0.00013698,2]
[331164835,1720114241049,-302.29984861,0.00013698,2]
[331164837,1720114241060,-500.0,0.00013698,2]
[331164839,1720114241070,-500.0,0.00013698,2]
[331164841,1720114241079,-500.0,0.00013698,2]
[331164843,1720114241088,-500.0,0.00013698,2]
[331164845,1720114241098,-500.0,0.00013698,2]
[331164847,1720114241108,-500.0,0.00013698,2]
[331164849,1720114241117,-500.0,0.00013698,2]
[331164851,1720114241127,-500.0,0.00013698,2]
[331164853,1720114241137,-500.0,0.00013698,2]
[331164855,1720114241148,-500.0,0.00013698,2]
[331164857,1720114241159,-595.58802194,0.00013698,2]
[331164859,1720114241169,-364.04299557,0.00013698,2]
[331164861,1720114241178,-500.0,0.00013698,2]
[331164863,1720114241187,-500.0,0.00013698,2]
[331164865,1720114241197,-504.12768705,0.00013698,2]
[331164868,1720114241207,-500.0,0.00013698,2]
[331164872,1720114241216,-266.8535251,0.00013698,2]
[331164875,1720114241226,-764.23,0.00013698,2]
[331164878,1720114241235,-500.0,0.00013698,2]
[331164881,1720114241245,-500.0,0.00013698,2]
[331164882,1720114241255,-500.0,0.00013698,2]
[331164883,1720114241265,-444.41205078,0.00013698,2]
[331164884,1720114241275,-500.0,0.00013698,2]
[331164885,1720114241285,-500.0,0.00013698,2]
[331164886,1720114241294,-7780.37,0.00013698,2]
[331164887,1720114241303,-500.0,0.00013698,2]
[331164888,1720114241312,-609.52,0.00013698,2]
[331164889,1720114241322,-500.0,0.00013698,2]
[331164890,1720114241332,-500.0,0.00013698,2]
[331164891,1720114241341,-500.0,0.00013698,2]
[331164892,1720114241351,-500.0,0.00013698,2]
[331164893,1720114241361,-500.0,0.00013698,2]
[331164894,1720114241371,-637.8,0.00013698,2]
[331164895,1720114241380,-500.0,0.00013698,2]
[331164896,1720114241389,-500.0,0.00013698,2]
[331164897,1720114241399,-1596.65,0.00013698,2]
[331164898,1720114241409,-500.0,0.00013698,2]
[331164899,1720114241418,-500.0,0.00013698,2]
[331164900,1720114241428,-500.0,0.00013698,2]
[331164901,1720114241437,-500.0,0.00013698,2]
[331164902,1720114241447,-4110.68,0.00013698,2]
[331164903,1720114241457,-500.0,0.00013698,2]
[331164904,1720114241472,-500.0,0.00013698,2]
[331164905,1720114241493,-500.0,0.00013698,2]
[331164906,1720114241513,-500.0,0.00013698,2]
[331164907,1720114241535,-500.0,0.00013698,2]
[331164908,1720114241557,-500.0,0.00013698,2]
[331164909,1720114241580,-500.0,0.00013698,2]
[331164910,1720114241601,-500.0,0.00013698,2]
[331164911,1720114241624,-500.0,0.00013698,2]
[331164912,1720114241647,-500.0,0.00013698,2]
[331164913,1720114241670,-500.0,0.00013698,2]
[331164914,1720114241693,-500.0,0.00013698,2]
[331164915,1720114241717,-500.0,0.00013698,2]
[331164916,1720114241726,-500.0,0.00013698,2]
[331164917,1720114241736,-500.0,0.00013698,2]
[331164918,1720114241746,-500.0,0.00013698,2]
[331164919,1720114241755,-500.0,0.00013698,2]
[331164920,1720114241765,-500.0,0.00013698,2]
[331164921,1720114241775,-504.42497426,0.00013698,2]
[331164922,1720114241785,-500.0,0.00013698,2]
[331164923,1720114241795,-582.2757472,0.00013698,2]
[331164924,1720114241805,-500.0,0.00013698,2]
[331164925,1720114241815,-1032.18,0.00013698,2]
[331164926,1720114241824,-500.0,0.00013698,2]
[331164927,1720114241834,-500.0,0.00013698,2]
[331164928,1720114241843,-1332.1,0.00013698,2]
[331164929,1720114241852,-500.0,0.00013698,2]
[331164930,1720114241862,-500.0,0.00013698,2]
[331164931,1720114241872,-500.0,0.00013698,2]
[331164932,1720114241882,-502.90942886,0.00013698,2]
[331164933,1720114241891,-500.0,0.00013698,2]
[331164934,1720114241900,-500.0,0.00013698,2]
[331164935,1720114241910,-500.0,0.00013698,2]
[331164936,1720114241920,-500.0,0.00013698,2]
[331164937,1720114241930,-500.0,0.00013698,2]
[331164938,1720114241941,-500.0,0.00013698,2]
[331164939,1720114241952,-502.12164599,0.00013698,2]
[331164940,1720114241962,-500.0,0.00013698,2]
[331164941,1720114241972,-500.0,0.00013698,2]
[331164942,1720114241982,-500.0,0.00013698,2]
[331164943,1720114241991,-361.23,0.00013698,2]
[331164944,1720114242001,-500.0,0.00013698,2]
[331164945,1720114242012,-713.62,0.00013698,2]
[331164946,1720114242022,-500.0,0.00013698,2]
[331164947,1720114242032,-500.0,0.00013698,2]
[331164948,1720114242042,-500.0,0.00013698,2]
[331164949,1720114242052,-500.0,0.00013698,2]
[331164950,1720114242061,-500.0,0.00013698,2]
[331164951,1720114242071,-500.0,0.00013698,2]
[331164952,1720114242081,-500.0,0.00013698,2]
[331164953,1720114242091,-763.2,0.00013698,2]
[331164954,1720114242100,-500.0,0.00013698,2]
[331164955,1720114242109,-500.0,0.00013698,2]
[331164956,1720114242119,-500.0,0.00013698,2]
[331164957,1720114242128,-500.0,0.00013698,2]
[331164958,1720114242138,-500.0,0.00013698,2]
[331164959,1720114242148,-751.02,0.00013698,2]
[331164960,1720114242157,-500.0,0.00013698,2]
[331164961,1720114242168,-500.0,0.00013698,2]
[331164962,1720114242177,-500.0,0.00013698,2]
[331164963,1720114242187,-500.0,0.00013698,2]
[331164964,1720114242196,-500.0,0.00013698,2]
[331164965,1720114242205,-290.36509971,0.00013698,2]
[331164966,1720114242214,-500.0,0.00013698,2]
[331164967,1720114242223,-500.0,0.00013698,2]
[331164968,1720114242233,-500.0,0.00013698,2]
[331164969,1720114242242,-684.12,0.00013698,2]
[331164970,1720114242252,-500.0,0.00013698,2]
[331164971,1720114242263,-500.0,0.00013698,2]
[331164972,1720114242272,-438.94509361,0.00013698,2]
[331164973,1720114242282,-500.0,0.00013698,2]
[331164974,1720114242291,-500.0,0.00013698,2]
[331164975,1720114242300,-500.0,0.00013698,2]
[331164976,1720114242310,-500.0,0.00013698,2]
[331164977,1720114242319,-500.0,0.00013698,2]
[331164978,1720114242328,-500.0,0.00013698,2]
[331164979,1720114242338,-500.0,0.00013698,2]
[331164980,1720114242347,-521.35,0.00013698,2]
[331164981,1720114242356,-500.0,0.00013698,2]
[331164982,1720114242365,-500.0,0.00013698,2]
[331164983,1720114242374,-500.0,0.00013698,2]
[331164984,1720114242384,-501.12731378,0.00013698,2]
[331164985,1720114242393,-500.0,0.00013698,2]
[331164986,1720114242402,-500.0,0.00013698,2]
[331164987,1720114242411,-500.0,0.00013698,2]
[331164988,1720114242421,-500.0,0.00013698,2]
[331164989,1720114242430,-500.0,0.00013698,2]
[331164990,1720114242439,-508.23193348,0.00013698,2]
[331164991,1720114242449,-500.0,0.00013698,2]
[331164992,1720114242458,-500.0,0.00013698,2]
[331164993,1720114242468,-500.0,0.00013698,2]
[331164994,1720114242477,-501.47869092,0.00013698,2]
[331164995,1720114242487,-677.28,0.00013698,2]
[331164996,1720114242497,-500.0,0.00013698,2]
[331164997,1720114242611,-500.0,0.00013698,2]
[331164998,1720114242622,-500.0,0.00013698,2]
[331164999,1720114242632,-500.0,0.00013698,2]
[331165000,1720114242641,-508.13929116,0.00013698,2]
[331165001,1720114242651,-500.0,0.00013698,2]
[331165002,1720114242661,-642.19539709,0.00013698,2]
[331165003,1720114242670,-500.0,0.00013698,2]
[331165004,1720114242680,-500.0,0.00013698,2]
[331165005,1720114242689,-500.0,0.00013698,2]
[331165006,1720114242698,-317.44575777,0.00013698,2]
[331165007,1720114242708,-500.0,0.00013698,2]
[331165008,1720114242717,-500.0,0.00013698,2]
[331165009,1720114242728,-500.0,0.00013698,2]
[331165010,1720114242738,-500.0,0.00013698,2]
[331165011,1720114242747,-527.64,0.00013698,2]
[331165012,1720114242757,-500.0,0.00013698,2]
[331165013,1720114242767,-500.0,0.00013698,2]
[331165014,1720114242776,-500.0,0.00013698,2]
[331165015,1720114242786,-428.15097289,0.00013698,2]
[331165016,1720114242796,-500.0,0.00013698,2]
[331165017,1720114242806,-234.97903138,0.00013698,2]
[331165018,1720114242815,-500.0,0.00013698,2]
[331165019,1720114242825,-500.0,0.00013698,2]
[331165020,1720114242835,-500.0,0.00013698,2]
[331165021,1720114242845,-770.79,0.00013698,2]
[331165022,1720114242855,-589.17,0.00013698,2]
[331165023,1720114242865,-210.30514185,0.00013698,2]
[331165024,1720114242874,-500.0,0.00013698,2]
[331165025,1720114242884,-500.0,0.00013698,2]
[331165026,1720114242894,-500.0,0.00013698,2]
[331165027,1720114242904,-500.0,0.00013698,2]
[331165028,1720114242914,-532.2078891,0.00013698,2]
[331165029,1720114242924,-500.0,0.00013698,2]
[331165030,1720114242934,-500.0,0.00013698,2]
[331165031,1720114242945,-500.0,0.00013698,2]
[331165032,1720114242955,-500.0,0.00013698,2]
[331165033,1720114242965,-500.0,0.00013698,2]
[331165034,1720114242975,-504.35534164,0.00013698,2]
[331165035,1720114242985,-500.0,0.00013698,2]
[331165036,1720114242995,-500.0,0.00013698,2]
[331165037,1720114243006,-500.0,0.00013698,2]
[331165038,1720114243017,-500.0,0.00013698,2]
[331165039,1720114243027,-500.0,0.00013698,2]
[331165040,1720114243037,-500.0,0.00013698,2]
[331165041,1720114243047,-500.0,0.00013698,2]
[331165042,1720114243056,-500.0,0.00013698,2]
[331165043,1720114243066,-500.0,0.00013698,2]
[331165044,1720114243075,-504.17369231,0.00013698,2]
[331165045,1720114243084,-500.0,0.00013698,2]
[331165046,1720114243094,-818.98,0.00013698,2]
[331165047,1720114243103,-500.0,0.00013698,2]
[331165048,1720114243112,-506.76700847,0.00013698,2]
[331165049,1720114243122,-500.0,0.00013698,2]
[331165050,1720114243131,-500.0,0.00013698,2]
[331165051,1720114243142,-500.0,0.00013698,2]
[331165052,1720114243151,-8514.72,0.00013698,2]
[331165053,1720114243161,-500.0,0.00013698,2]
[331165054,1720114243171,-595.85,0.00013698,2]
[331165055,1720114243180,-500.0,0.00013698,2]
[331165056,1720114243189,-500.0,0.00013698,2]
[331165057,1720114243199,-500.0,0.00013698,2]
[331165058,1720114243208,-505.94327232,0.00013698,2]
[331165059,1720114243218,-500.0,0.00013698,2]
[331165060,1720114243227,-500.0,0.00013698,2]
[331165061,1720114243237,-500.0,0.00013698,2]
[331165062,1720114243247,-500.0,0.00013698,2]
[331165063,1720114243256,-500.0,0.00013698,2]
[331165064,1720114243266,-500.0,0.00013698,2]
[331165065,1720114243275,-500.0,0.00013698,2]
[331165066,1720114243286,-500.0,0.00013698,2]
[331165067,1720114243296,-500.0,0.00013698,2]
[331165068,1720114243305,-500.0,0.00013698,2]
[331165069,1720114243315,-938.47,0.00013698,2]
[331165070,1720114243324,-500.0,0.00013698,2]
[331165071,1720114243334,-500.0,0.00013698,2]
[331165072,1720114243343,-500.0,0.00013698,2]
[331165073,1720114243353,-500.0,0.00013698,2]
[331165074,1720114243362,-500.0,0.00013698,2]
[331165075,1720114243376,-500.0,0.00013698,2]
[331165077,1720114243399,-500.0,0.00013698,2]
[331165078,1720114243420,-500.0,0.00013698,2]
[331165080,1720114243439,-500.0,0.00013698,2]
[331165082,1720114243462,-368.14415704,0.00013698,2]
[331165085,1720114243484,-468.79714183,0.00013698,2]
[331165086,1720114243505,-500.0,0.00013698,2]
[331165088,1720114243524,-500.0,0.00013698,2]
[331165090,1720114243547,-500.0,0.00013698,2]
[331165092,1720114243569,-387.46620817,0.00013698,2]
[331165094,1720114243591,-500.0,0.00013698,2]
[331165096,1720114243613,-500.0,0.00013698,2]
[331165098,1720114243626,-500.0,0.00013698,2]
[331165100,1720114243635,-500.0,0.00013698,2]
[331165102,1720114243647,-500.0,0.00013698,2]
[331165104,1720114243671,-500.0,0.00013698,2]
[331165106,1720114243695,-500.0,0.00013698,2]
[331165108,1720114243719,-500.0,0.00013698,2]
[331165110,1720114243744,-500.0,0.00013698,2]
[331165112,1720114243763,-500.0,0.00013698,2]
[331165114,1720114243785,-500.0,0.00013698,2]
[331165116,1720114243810,-636.56817691,0.00013698,2]
[331165118,1720114243832,-500.0,0.00013698,2]
[331165120,1720114243855,-500.0,0.00013698,2]
[331165122,1720114243877,-550.83221088,0.00013698,2]
[331165125,1720114243890,-500.0,0.00013698,2]
[331165127,1720114243899,-500.0,0.00013698,2]
[331165129,1720114243908,-501.61006172,0.00013698,2]
[331165131,1720114243919,-500.0,0.00013698,2]
[331165133,1720114243933,-500.0,0.00013698,2]
[331165136,1720114243950,-500.0,0.00013698,2]
[331165138,1720114243965,-2275.87,0.00013698,2]
[331165140,1720114243976,-500.0,0.00013698,2]
[331165143,1720114243988,-500.0,0.00013698,2]
[331165145,1720114244001,-500.0,0.00013698,2]
[331165148,1720114244015,-500.0,0.00013698,2]
[331165150,1720114244028,-235.0,0.00013698,2]
[331165152,1720114244042,-953.61,0.00013698,2]
[331165155,1720114244055,-357.70603781,0.00013698,2]
[331165157,1720114244070,-451.19898277,0.00013698,2]
[331165160,1720114244083,-500.0,0.00013698,2]
[331165162,1720114244096,-611.24359114,0.00013698,2]
[331165165,1720114244108,-500.0,0.00013698,2]
[331165167,1720114244119,-2960.56,0.00013698,2]
[331165169,1720114244132,-500.0,0.00013698,2]
[331165172,1720114244145,-500.0,0.00013698,2]
[331165174,1720114244158,-500.0,0.00013698,2]
[331165176,1720114244169,-500.0,0.00013698,2]
[331165178,1720114244179,-500.0,0.00013698,2]
[331165181,1720114244191,-500.0,0.00013698,2]
[331165183,1720114244202,-1488.91,0.00013698,2]
[331165185,1720114244215,-414.89177427,0.00013698,2]
[331165188,1720114244228,-501.87428358,0.00013698,2]
[331165190,1720114244240,-500.0,0.00013698,2]
[331165192,1720114244254,-500.0,0.00013698,2]
[331165195,1720114244267,-504.45593645,0.00013698,2]
[331165197,1720114244280,-500.0,0.00013698,2]
[331165199,1720114244292,-502.17873915,0.00013698,2]
[331165202,1720114244303,-500.0,0.00013698,2]
[331165204,1720114244313,-500.0,0.00013698,2]
[331165206,1720114244325,-500.0,0.00013698,2]
[331165209,1720114244338,-500.0,0.00013698,2]
[331165211,1720114244351,-1147.84,0.00013698,2]
[331165213,1720114244364,-500.0,0.00013698,2]
[331165216,1720114244375,-500.0,0.00013698,2]
[331165218,1720114244386,-500.0,0.00013698,2]
[331165220,1720114244398,-500.0,0.00013698,2]
[331165222,1720114244410,-500.0,0.00013698,2]
[331165225,1720114244421,-500.0,0.00013698,2]
[331165227,1720114244432,-8313.36,0.00013698,2]
[331165229,1720114244443,-188.87247166,0.00013698,2]
[331165231,1720114244453,-500.0,0.00013698,2]
[331165233,1720114244465,-504.5964732,0.00013698,2]
[331165235,1720114244476,-500.0,0.00013698,2]
[331165238,1720114244487,-500.0,0.00013698,2]
[331165240,1720114244501,-738.7,0.00013698,2]
[331165242,1720114244513,-5256.62,0.00013698,2]
[331165244,1720114244525,-500.0,0.00013698,2]
[331165247,1720114244536,-500.0,0.00013698,2]
[331165249,1720114244548,-399.50978021,0.00013698,2]
[331165251,1720114244558,-500.0,0.00013698,2]
[331165253,1720114244569,-500.0,0.00013698,2]
[331165255,1720114244584,-500.0,0.00013698,2]
[331165257,1720114244596,-509.33519276,0.00013698,2]
[331165260,1720114244608,-500.0,0.00013698,2]
[331165262,1720114244619,-500.0,0.00013698,2]
[331165264,1720114244630,-2734.87,0.00013698,2]
[331165266,1720114244641,-508.25591897,0.00013698,2]
[331165268,1720114244653,-1655.02,0.00013698,2]
[331165271,1720114244664,-1655.02,0.00013698,2]
[331165273,1720114244676,-500.0,0.00013698,2]
[331165275,1720114244687,-1655.02,0.00013698,2]
[331165277,1720114244698,-1655.02,0.00013698,2]
[331165279,1720114244709,-1655.02,0.00013698,2]
[331165282,1720114244720,-1655.02,0.00013698,2]
[331165284,1720114244731,-500.0,0.00013698,2]
[331165286,1720114244743,-1655.02,0.00013698,2]
[331165288,1720114244754,-500.0,0.00013698,2]
[331165290,1720114244766,-500.0,0.00013698,2]
[331165292,1720114244777,-500.0,0.00013698,2]
[331165295,1720114244788,-500.0,0.00013698,2]
[331165297,1720114244800,-500.0,0.00013698,2]
[331165299,1720114244812,-500.0,0.00013698,2]
[331165301,1720114244824,-1053.23,0.00013698,2]
[331165304,1720114244835,-500.0,0.00013698,2]
[331165306,1720114244846,-500.0,0.00013698,2]
[331165308,1720114244857,-500.0,0.00013698,2]
[331165310,1720114244869,-500.0,0.00013698,2]
[331165312,1720114244880,-500.0,0.00013698,2]
[331165314,1720114244892,-501.81762391,0.00013698,2]
[331165317,1720114244903,-500.0,0.00013698,2]
[331165319,1720114244914,-629.75377508,0.00013698,2]
[331165321,1720114244925,-500.0,0.00013698,2]
[331165323,1720114244940,-19362.9,0.00013698,2]
[331165325,1720114244953,-500.0,0.00013698,2]
[331165328,1720114244966,-5016.36,0.00013698,2]
[331165330,1720114244979,-501.32521255,0.00013698,2]
[331165332,1720114244992,-500.0,0.00013698,2]
[331165335,1720114245008,-500.0,0.00013698,2]
[331165337,1720114245022,-546.39261507,0.00013698,2]
[331165339,1720114245036,-500.0,0.00013698,2]
[331165342,1720114245048,-500.0,0.00013698,2]
[331165344,1720114245060,-500.0,0.00013698,2]
[331165346,1720114245071,-500.0,0.00013698,2]
[331165348,1720114245084,-770.8,0.00013698,2]
[331165351,1720114245095,-500.0,0.00013698,2]
[331165353,1720114245107,-500.0,0.00013698,2]
[331165355,1720114245119,-500.0,0.00013698,2]
[331165357,1720114245130,-500.0,0.00013698,2]
[331165359,1720114245142,-500.0,0.00013698,2]
[331165361,1720114245154,-500.0,0.00013698,2]
[331165379,1720114245311,-2103.22,0.00013698,2]
[331165382,1720114245333,-500.0,0.00013698,2]
[331165384,1720114245343,-500.0,0.00013698,2]
[331165386,1720114245353,-500.0,0.00013698,2]
[331165388,1720114245363,-553.31,0.00013698,2]